[Event "Early-Titled-Tuesday-Blitz-February-27-2024"]
[Site "Chess.com"]
[Date "2024.02.27"]
[Round "5"]
[White "Rurep26"]
[Black "Nouali_Mohamed"]
[Result "1-0"]
[WhiteElo "2701"]
[BlackElo "2542"]
[TimeControl "180+1"]
[EndTime "8:55:02 PST"]
[Termination "Rurep26 won by checkmate"]

1. d4 {[%clk 0:02:52.3]} 1... Nf6 {[%clk 0:02:58.7]} 2. Bf4 {[%clk 0:02:51.2]}
2... g6 {[%clk 0:02:51.4]} 3. Nc3 {[%clk 0:02:49.8]} 3... Bg7 {[%clk 0:02:44.9]}
4. e4 {[%clk 0:02:50]} 4... O-O {[%clk 0:02:44.5]} 5. Qd2 {[%clk 0:02:49.9]}
5... d5 {[%clk 0:02:38.5]} 6. e5 {[%clk 0:02:49.7]} 6... Ne4 {[%clk 0:02:38.8]}
7. Nxe4 {[%clk 0:02:49.3]} 7... dxe4 {[%clk 0:02:39.7]} 8. Ne2 {[%clk
0:02:49.4]} 8... c5 {[%clk 0:02:24.2]} 9. dxc5 {[%clk 0:02:48.1]} 9... Qxd2+
{[%clk 0:02:20.9]} 10. Bxd2 {[%clk 0:02:49]} 10... Bxe5 {[%clk 0:02:14.2]} 11.
Bc3 {[%clk 0:02:49.4]} 11... Nc6 {[%clk 0:01:48.5]} 12. Bxe5 {[%clk 0:02:44.2]}
12... Nxe5 {[%clk 0:01:49.4]} 13. Nc3 {[%clk 0:02:44.7]} 13... f5 {[%clk
0:01:41.7]} 14. Nd5 {[%clk 0:02:43.7]} 14... Kf7 {[%clk 0:01:41.7]} 15. Nc7
{[%clk 0:02:36.9]} 15... Rb8 {[%clk 0:01:40.4]} 16. Nb5 {[%clk 0:02:37.4]} 16...
a6 {[%clk 0:01:38.2]} 17. Nd4 {[%clk 0:02:37.5]} 17... Bd7 {[%clk 0:01:33.9]}
18. f4 {[%clk 0:02:31.7]} 18... exf3 {[%clk 0:01:25]} 19. gxf3 {[%clk
0:02:32.6]} 19... Rfd8 {[%clk 0:01:19.4]} 20. f4 {[%clk 0:02:11.7]} 20... Bc6
{[%clk 0:00:46.1]} 21. Nxc6 {[%clk 0:02:10.3]} 21... Nxc6 {[%clk 0:00:47]} 22.
Bc4+ {[%clk 0:02:05]} 22... Kf6 {[%clk 0:00:46]} 23. c3 {[%clk 0:02:05.9]} 23...
e5 {[%clk 0:00:44.8]} 24. Rf1 {[%clk 0:01:38.8]} 24... exf4 {[%clk 0:00:37.6]}
25. Rxf4 {[%clk 0:01:39.7]} 25... Ne5 {[%clk 0:00:38]} 26. Be2 {[%clk
0:01:33.5]} 26... g5 {[%clk 0:00:23.2]} 27. Rb4 {[%clk 0:01:26.9]} 27... Nd3+
{[%clk 0:00:15.7]} 28. Bxd3 {[%clk 0:01:26]} 28... Rxd3 {[%clk 0:00:16.6]} 29.
Rb6+ {[%clk 0:01:19]} 29... Kg7 {[%clk 0:00:15.4]} 30. Re6 {[%clk 0:01:00.8]}
30... Kf7 {[%clk 0:00:07.1]} 31. Re2 {[%clk 0:00:51.4]} 31... Rc8 {[%clk
0:00:05.1]} 32. Kf1 {[%clk 0:00:40.4]} 32... Rxc5 {[%clk 0:00:05.1]} 33. Rae1
{[%clk 0:00:41.3]} 33... Kg6 {[%clk 0:00:05.1]} 34. Re7 {[%clk 0:00:39.3]} 34...
b5 {[%clk 0:00:04.2]} 35. R1e6+ {[%clk 0:00:39.3]} 35... Kh5 {[%clk 0:00:04.6]}
36. Rxa6 {[%clk 0:00:33.9]} 36... Kg4 {[%clk 0:00:04.2]} 37. Re2 {[%clk
0:00:26.7]} 37... f4 {[%clk 0:00:03.6]} 38. Rae6 {[%clk 0:00:23.1]} 38... Rc4
{[%clk 0:00:02.8]} 39. Kf2 {[%clk 0:00:20.7]} 39... h5 {[%clk 0:00:02.5]} 40.
R6e5 {[%clk 0:00:19.3]} 40... Kh4 {[%clk 0:00:02.7]} 41. Rxb5 {[%clk 0:00:15.9]}
41... Rh3 {[%clk 0:00:03.2]} 42. Kg1 {[%clk 0:00:15]} 42... Rc6 {[%clk
0:00:03.8]} 43. Rd5 {[%clk 0:00:14.4]} 43... Rb6 {[%clk 0:00:03.7]} 44. a4
{[%clk 0:00:13.2]} 44... Ra6 {[%clk 0:00:04.1]} 45. a5 {[%clk 0:00:13.5]} 45...
Ra8 {[%clk 0:00:04.2]} 46. Rg2 {[%clk 0:00:12.8]} 46... Re3 {[%clk 0:00:04.2]}
47. Rgxg5 {[%clk 0:00:12.2]} 47... Re1+ {[%clk 0:00:02.2]} 48. Kf2 {[%clk
0:00:12.8]} 48... Rb1 {[%clk 0:00:03.1]} 49. Kf3 {[%clk 0:00:12.3]} 49... Rf1+
{[%clk 0:00:02.5]} 50. Kg2 {[%clk 0:00:12.6]} 50... Rb1 {[%clk 0:00:02.5]} 51.
Rxh5+ {[%clk 0:00:12.8]} 51... Kg4 {[%clk 0:00:02.9]} 52. h3# {[%clk 0:00:13]}
1-0

[Event "Early-Titled-Tuesday-Blitz-February-27-2024"]
[Site "Chess.com"]
[Date "2024.02.27"]
[Round "5"]
[White "claudyna16"]
[Black "azikom"]
[Result "0-1"]
[WhiteElo "2462"]
[BlackElo "2626"]
[TimeControl "180+1"]
[EndTime "8:55:02 PST"]
[Termination "azikom won by checkmate"]

1. Nf3 {[%clk 0:03:00.9]} 1... c6 {[%clk 0:03:00.9]} 2. b3 {[%clk 0:02:56.1]}
2... d5 {[%clk 0:03:01.8]} 3. Bb2 {[%clk 0:02:56.5]} 3... Bg4 {[%clk 0:03:01.1]}
4. g3 {[%clk 0:02:57.4]} 4... Bxf3 {[%clk 0:03:00.2]} 5. Bg2 {[%clk 0:02:58.3]}
5... e6 {[%clk 0:03:00.6]} 6. Bxf3 {[%clk 0:02:56.2]} 6... Nf6 {[%clk
0:02:57.9]} 7. O-O {[%clk 0:02:55.3]} 7... a5 {[%clk 0:02:55]} 8. a4 {[%clk
0:02:54.6]} 8... Na6 {[%clk 0:02:54]} 9. d3 {[%clk 0:02:50.4]} 9... Nb4 {[%clk
0:02:53.4]} 10. Bg2 {[%clk 0:02:44.1]} 10... Be7 {[%clk 0:02:52.7]} 11. Nd2
{[%clk 0:02:40.2]} 11... O-O {[%clk 0:02:52.6]} 12. e4 {[%clk 0:02:39.6]} 12...
Qc7 {[%clk 0:02:46.5]} 13. Qe2 {[%clk 0:02:20.5]} 13... Nxc2 {[%clk 0:02:43.6]}
14. Rac1 {[%clk 0:02:18.5]} 14... Nb4 {[%clk 0:02:44]} 15. e5 {[%clk 0:02:11.2]}
15... Nd7 {[%clk 0:02:43.1]} 16. f4 {[%clk 0:02:10.2]} 16... Qb6+ {[%clk
0:02:43]} 17. Kh1 {[%clk 0:02:05.5]} 17... Bc5 {[%clk 0:02:34.8]} 18. Nf3 {[%clk
0:01:53.1]} 18... Be3 {[%clk 0:02:25.9]} 19. Rce1 {[%clk 0:01:47.5]} 19... d4
{[%clk 0:02:25.5]} 20. Bc1 {[%clk 0:01:32.7]} 20... Rad8 {[%clk 0:02:19.8]} 21.
Bxe3 {[%clk 0:01:18]} 21... dxe3 {[%clk 0:02:20.7]} 22. d4 {[%clk 0:01:18.2]}
22... Nd5 {[%clk 0:02:16.7]} 23. Qc4 {[%clk 0:01:15.4]} 23... Qb4 {[%clk
0:02:11.1]} 24. Ng5 {[%clk 0:00:50.5]} 24... h6 {[%clk 0:01:51]} 25. Ne4 {[%clk
0:00:47.8]} 25... N7b6 {[%clk 0:01:47.9]} 26. Qd3 {[%clk 0:00:42.1]} 26... Rfe8
{[%clk 0:01:35.2]} 27. Bh3 {[%clk 0:00:42.1]} 27... Nc7 {[%clk 0:00:58.5]} 28.
Qxe3 {[%clk 0:00:40.3]} 28... Rxd4 {[%clk 0:00:52.8]} 29. Nd6 {[%clk 0:00:40]}
29... Ncd5 {[%clk 0:00:46.8]} 30. Qf3 {[%clk 0:00:34.7]} 30... Rf8 {[%clk
0:00:21.5]} 31. f5 {[%clk 0:00:34.7]} 31... exf5 {[%clk 0:00:20]} 32. Nxf5
{[%clk 0:00:33.6]} 32... Rd2 {[%clk 0:00:20]} 33. Re4 {[%clk 0:00:30]} 33... Qc3
{[%clk 0:00:19.1]} 34. Qg4 {[%clk 0:00:29.2]} 34... g6 {[%clk 0:00:18.8]} 35.
Nxh6+ {[%clk 0:00:28]} 35... Kg7 {[%clk 0:00:18.7]} 36. e6 {[%clk 0:00:25.4]}
36... Nf6 {[%clk 0:00:09.8]} 37. Nf5+ {[%clk 0:00:24.3]} 37... Kg8 {[%clk
0:00:09.6]} 38. Ne7+ {[%clk 0:00:21.8]} 38... Kg7 {[%clk 0:00:06.5]} 39. Nf5+
{[%clk 0:00:15.1]} 39... Kg8 {[%clk 0:00:06.5]} 40. Qg5 {[%clk 0:00:13.1]} 40...
Nxe4 {[%clk 0:00:05.8]} 41. exf7+ {[%clk 0:00:07.2]} 41... Rxf7 {[%clk
0:00:05.6]} 42. Qxg6+ {[%clk 0:00:07.4]} 42... Kf8 {[%clk 0:00:05.9]} 43. Qh6+
{[%clk 0:00:04]} 43... Ke8 {[%clk 0:00:06]} 44. Qg6 {[%clk 0:00:03.7]} 44... Kd8
{[%clk 0:00:05.2]} 45. Qxf7 {[%clk 0:00:03]} 45... Nf2+ {[%clk 0:00:05]} 46. Kg1
{[%clk 0:00:01.9]} 46... Nxh3+ {[%clk 0:00:04.9]} 47. Kh1 {[%clk 0:00:02.8]}
47... Nf2+ {[%clk 0:00:05.3]} 48. Kg1 {[%clk 0:00:03.3]} 48... Qf3 {[%clk
0:00:05.5]} 49. Qe7+ {[%clk 0:00:02.7]} 49... Kc8 {[%clk 0:00:04.7]} 50. Nd6+
{[%clk 0:00:02.9]} 50... Rxd6 {[%clk 0:00:04.7]} 51. Qxd6 {[%clk 0:00:03.3]}
51... Nh3# {[%clk 0:00:04.6]} 0-1

[Event "Early-Titled-Tuesday-Blitz-February-27-2024"]
[Site "Chess.com"]
[Date "2024.02.27"]
[Round "5"]
[White "Chesstiger64"]
[Black "Egor_Koshulyan"]
[Result "0-1"]
[WhiteElo "2355"]
[BlackElo "2656"]
[TimeControl "180+1"]
[EndTime "8:55:03 PST"]
[Termination "Egor_Koshulyan won on time"]

1. d4 {[%clk 0:02:54.5]} 1... Nf6 {[%clk 0:02:47.6]} 2. Nf3 {[%clk 0:02:54.6]}
2... d5 {[%clk 0:02:47.9]} 3. e3 {[%clk 0:02:54.2]} 3... c5 {[%clk 0:02:48.2]}
4. c3 {[%clk 0:02:53.8]} 4... cxd4 {[%clk 0:02:38.3]} 5. exd4 {[%clk 0:02:53.2]}
5... Nc6 {[%clk 0:02:38.6]} 6. Bd3 {[%clk 0:02:52.2]} 6... Bg4 {[%clk
0:02:37.5]} 7. Nbd2 {[%clk 0:02:52.6]} 7... e6 {[%clk 0:02:36]} 8. O-O {[%clk
0:02:53]} 8... Bd6 {[%clk 0:02:35.9]} 9. Re1 {[%clk 0:02:53.5]} 9... O-O {[%clk
0:02:35.9]} 10. Nf1 {[%clk 0:02:54.1]} 10... Rb8 {[%clk 0:02:23.4]} 11. Bg5
{[%clk 0:02:52.5]} 11... b5 {[%clk 0:02:18.2]} 12. a3 {[%clk 0:02:53]} 12... a5
{[%clk 0:02:18.2]} 13. Ng3 {[%clk 0:02:53.1]} 13... h6 {[%clk 0:02:14.6]} 14.
Bxf6 {[%clk 0:02:43.1]} 14... Qxf6 {[%clk 0:02:15.5]} 15. Re3 {[%clk 0:02:36.8]}
15... b4 {[%clk 0:02:13.7]} 16. axb4 {[%clk 0:02:36.4]} 16... axb4 {[%clk
0:02:14.6]} 17. h3 {[%clk 0:02:36.7]} 17... Bxg3 {[%clk 0:01:58.9]} 18. fxg3
{[%clk 0:02:34.2]} 18... Bf5 {[%clk 0:01:59.2]} 19. g4 {[%clk 0:02:18.6]} 19...
Bxd3 {[%clk 0:01:43.3]} 20. Qxd3 {[%clk 0:02:19.5]} 20... bxc3 {[%clk
0:01:43.3]} 21. bxc3 {[%clk 0:02:19]} 21... Rb3 {[%clk 0:01:43.8]} 22. Rf1
{[%clk 0:01:57]} 22... Qe7 {[%clk 0:01:39.5]} 23. Qc2 {[%clk 0:01:48]} 23... Ra3
{[%clk 0:01:35.3]} 24. Ne5 {[%clk 0:01:44.2]} 24... Nxd4 {[%clk 0:01:32.6]} 25.
Qd2 {[%clk 0:01:27]} 25... Nb3 {[%clk 0:01:31.1]} 26. Qb2 {[%clk 0:01:23.3]}
26... Na5 {[%clk 0:01:18.3]} 27. Kh1 {[%clk 0:01:17.3]} 27... Ra4 {[%clk
0:01:12.1]} 28. Ref3 {[%clk 0:01:15.7]} 28... Nc4 {[%clk 0:01:09.1]} 29. Nxc4
{[%clk 0:01:12.5]} 29... Rxc4 {[%clk 0:01:10]} 30. Qd2 {[%clk 0:01:06.2]} 30...
Qc7 {[%clk 0:01:06.4]} 31. g5 {[%clk 0:01:03.9]} 31... hxg5 {[%clk 0:01:07.3]}
32. Qxg5 {[%clk 0:01:03.4]} 32... Rxc3 {[%clk 0:01:04.1]} 33. Rxc3 {[%clk
0:01:03.1]} 33... Qxc3 {[%clk 0:01:05]} 34. Rf3 {[%clk 0:00:52]} 34... Qe1+
{[%clk 0:01:04.2]} 35. Kh2 {[%clk 0:00:50.9]} 35... f6 {[%clk 0:01:03.6]} 36.
Qg4 {[%clk 0:00:50.2]} 36... Rf7 {[%clk 0:01:00]} 37. Ra3 {[%clk 0:00:32.9]}
37... Qe5+ {[%clk 0:00:59]} 38. Kh1 {[%clk 0:00:33.1]} 38... Qg5 {[%clk
0:00:38]} 39. Ra8+ {[%clk 0:00:27.7]} 39... Kh7 {[%clk 0:00:38.2]} 40. Qxe6
{[%clk 0:00:26.6]} 40... Qc1+ {[%clk 0:00:37]} 41. Kh2 {[%clk 0:00:26.1]} 41...
Qf4+ {[%clk 0:00:37.7]} 42. Kh1 {[%clk 0:00:26.4]} 42... Rc7 {[%clk 0:00:33.3]}
43. Qg8+ {[%clk 0:00:19.7]} 43... Kg6 {[%clk 0:00:33.4]} 44. Qe8+ {[%clk
0:00:16.7]} 44... Kg5 {[%clk 0:00:33.4]} 45. Ra1 {[%clk 0:00:13.7]} 45... Rc1+
{[%clk 0:00:29.2]} 46. Rxc1 {[%clk 0:00:13.9]} 46... Qxc1+ {[%clk 0:00:30.1]}
47. Kh2 {[%clk 0:00:14.3]} 47... Qf4+ {[%clk 0:00:30.8]} 48. Kh1 {[%clk
0:00:12.8]} 48... d4 {[%clk 0:00:29]} 49. Qd7 {[%clk 0:00:12.8]} 49... g6 {[%clk
0:00:24.8]} 50. Qd5+ {[%clk 0:00:11.2]} 50... Qe5 {[%clk 0:00:25.5]} 51. Qf3
{[%clk 0:00:10.9]} 51... Qe3 {[%clk 0:00:20.6]} 52. Qd5+ {[%clk 0:00:06.5]}
52... Kh4 {[%clk 0:00:16.9]} 53. Kh2 {[%clk 0:00:03.9]} 53... Qe5+ {[%clk
0:00:15]} 54. g3+ {[%clk 0:00:02.8]} 54... Qxg3+ {[%clk 0:00:15.1]} 55. Kh1
{[%clk 0:00:02.7]} 55... Qxh3+ {[%clk 0:00:15.8]} 56. Kg1 {[%clk 0:00:03.1]}
56... Qg3+ {[%clk 0:00:16.5]} 57. Kh1 {[%clk 0:00:02.9]} 57... Qe1+ {[%clk
0:00:17.1]} 58. Kg2 {[%clk 0:00:02.9]} 58... Qe2+ {[%clk 0:00:17.8]} 59. Kh1
{[%clk 0:00:01.8]} 59... Qe5 {[%clk 0:00:17.6]} 0-1

[Event "Early-Titled-Tuesday-Blitz-February-27-2024"]
[Site "Chess.com"]
[Date "2024.02.27"]
[Round "5"]
[White "GianmarcoVaR"]
[Black "Lion-Al-Messi"]
[Result "0-1"]
[WhiteElo "2705"]
[BlackElo "2524"]
[TimeControl "180+1"]
[EndTime "8:55:07 PST"]
[Termination "Lion-Al-Messi won by resignation"]

1. e4 {[%clk 0:03:00.9]} 1... e6 {[%clk 0:03:00.3]} 2. d4 {[%clk 0:03:00.3]}
2... d5 {[%clk 0:03:00.9]} 3. Nc3 {[%clk 0:03:00.9]} 3... Nf6 {[%clk 0:03:01.2]}
4. e5 {[%clk 0:02:56.9]} 4... Nfd7 {[%clk 0:03:00.5]} 5. f4 {[%clk 0:02:56.9]}
5... c5 {[%clk 0:03:00.8]} 6. Nf3 {[%clk 0:02:56.7]} 6... Nc6 {[%clk 0:03:01.3]}
7. Be3 {[%clk 0:02:55.9]} 7... a6 {[%clk 0:03:01.4]} 8. Qd2 {[%clk 0:02:54.4]}
8... b5 {[%clk 0:03:01.4]} 9. Qf2 {[%clk 0:02:50.7]} 9... b4 {[%clk 0:03:00.3]}
10. Ne2 {[%clk 0:02:50.6]} 10... c4 {[%clk 0:02:59.7]} 11. g4 {[%clk 0:02:47.7]}
11... Be7 {[%clk 0:02:52.6]} 12. f5 {[%clk 0:02:44]} 12... Bb7 {[%clk
0:02:51.8]} 13. Nf4 {[%clk 0:02:40.6]} 13... Nf8 {[%clk 0:02:50.7]} 14. Nh5
{[%clk 0:02:39.8]} 14... Rg8 {[%clk 0:02:46.4]} 15. Bh3 {[%clk 0:02:15.7]} 15...
Qc7 {[%clk 0:02:45.2]} 16. g5 {[%clk 0:02:02.8]} 16... exf5 {[%clk 0:02:38.2]}
17. Nh4 {[%clk 0:01:45.6]} 17... g6 {[%clk 0:02:33.5]} 18. Nf6+ {[%clk
0:01:44.1]} 18... Bxf6 {[%clk 0:02:33.3]} 19. gxf6 {[%clk 0:01:43.1]} 19... Ne6
{[%clk 0:02:20.7]} 20. Rg1 {[%clk 0:01:40]} 20... Rh8 {[%clk 0:02:09]} 21. c3
{[%clk 0:01:36.2]} 21... O-O-O {[%clk 0:02:06.8]} 22. Qd2 {[%clk 0:01:26.8]}
22... a5 {[%clk 0:01:47.1]} 23. Bh6 {[%clk 0:01:25.8]} 23... Rhe8 {[%clk
0:01:44.4]} 24. a4 {[%clk 0:01:23.5]} 24... Nxe5 {[%clk 0:01:41.7]} 25. dxe5
{[%clk 0:01:15.9]} 25... Qxe5+ {[%clk 0:01:42.6]} 26. Kf1 {[%clk 0:01:15.9]}
26... d4 {[%clk 0:01:26]} 27. cxb4 {[%clk 0:01:03.3]} 27... axb4 {[%clk
0:01:11.4]} 28. Re1 {[%clk 0:00:59.7]} 28... Qc5 {[%clk 0:01:07.2]} 29. Bg2
{[%clk 0:00:51.6]} 29... c3 {[%clk 0:01:06.3]} 30. Qd3 {[%clk 0:00:40.4]} 30...
Qb6 {[%clk 0:00:54.8]} 31. Bxb7+ {[%clk 0:00:37.8]} 31... Qxb7 {[%clk
0:00:55.7]} 32. Rg2 {[%clk 0:00:28.6]} 32... Nc5 {[%clk 0:00:48.2]} 33. Qc4
{[%clk 0:00:29.1]} 33... Rxe1+ {[%clk 0:00:47.8]} 34. Kxe1 {[%clk 0:00:29.4]}
34... Qe4+ {[%clk 0:00:46.4]} 35. Kd1 {[%clk 0:00:27.5]} 35... Qb1+ {[%clk
0:00:30.2]} 36. Bc1 {[%clk 0:00:27.4]} 36... Qd3+ {[%clk 0:00:18.6]} 37. Qxd3
{[%clk 0:00:24.5]} 37... Nxd3 {[%clk 0:00:19.5]} 38. Nf3 {[%clk 0:00:21.1]}
38... b3 {[%clk 0:00:19]} 39. Re2 {[%clk 0:00:10.6]} 39... Rd6 {[%clk
0:00:10.4]} 40. Re8+ {[%clk 0:00:08.6]} 40... Kb7 {[%clk 0:00:07.8]} 41. Ne5
{[%clk 0:00:06.6]} 41... cxb2 {[%clk 0:00:06.5]} 42. Bxb2 {[%clk 0:00:03.6]}
42... Nxb2+ {[%clk 0:00:07.4]} 43. Kd2 {[%clk 0:00:04.3]} 43... Rxf6 {[%clk
0:00:07.7]} 44. Re7+ {[%clk 0:00:03]} 44... Ka6 {[%clk 0:00:07.2]} 45. Rd7
{[%clk 0:00:03.4]} 45... Nxa4 {[%clk 0:00:06.9]} 46. Rxd4 {[%clk 0:00:03.8]}
46... Nb6 {[%clk 0:00:06.9]} 47. Rb4 {[%clk 0:00:04.1]} 47... Rd6+ {[%clk
0:00:06.3]} 48. Ke2 {[%clk 0:00:03.5]} 48... Re6 {[%clk 0:00:06.3]} 49. Rxb3
{[%clk 0:00:02.4]} 49... Rxe5+ {[%clk 0:00:06.8]} 50. Kf3 {[%clk 0:00:03.3]}
50... Rb5 {[%clk 0:00:07.3]} 51. Ra3+ {[%clk 0:00:03.5]} 51... Ra5 {[%clk
0:00:07.2]} 52. Rd3 {[%clk 0:00:04.4]} 52... Rd5 {[%clk 0:00:06.8]} 53. Rc3
{[%clk 0:00:04.7]} 53... Kb7 {[%clk 0:00:07.2]} 54. Kf4 {[%clk 0:00:05.2]} 54...
Rd4+ {[%clk 0:00:07.6]} 55. Ke5 {[%clk 0:00:05.5]} 55... Re4+ {[%clk 0:00:07.9]}
56. Kf6 {[%clk 0:00:05.9]} 56... Nd5+ {[%clk 0:00:08.5]} 57. Kg5 {[%clk
0:00:06]} 57... Nxc3 {[%clk 0:00:09.4]} 58. h4 {[%clk 0:00:06.7]} 58... Rg4+
{[%clk 0:00:09.7]} 59. Kf6 {[%clk 0:00:07.1]} 59... f4 {[%clk 0:00:10.1]} 60.
Ke5 {[%clk 0:00:08]} 60... f3 {[%clk 0:00:10.6]} 61. Kf6 {[%clk 0:00:06.2]}
61... f2 {[%clk 0:00:10.8]} 62. h5 {[%clk 0:00:05.6]} 62... f1=Q+ {[%clk
0:00:11]} 0-1

[Event "Early-Titled-Tuesday-Blitz-February-27-2024"]
[Site "Chess.com"]
[Date "2024.02.27"]
[Round "5"]
[White "Sanan_Sjugirov"]
[Black "Gabrielian_Artur"]
[Result "1/2-1/2"]
[WhiteElo "2976"]
[BlackElo "2798"]
[TimeControl "180+1"]
[EndTime "8:55:09 PST"]
[Termination "Game drawn by repetition"]

1. e4 {[%clk 0:03:00.9]} 1... c5 {[%clk 0:02:59.5]} 2. Nf3 {[%clk 0:03:00.5]}
2... d6 {[%clk 0:02:59.6]} 3. Bb5+ {[%clk 0:02:57.8]} 3... Bd7 {[%clk
0:02:59.8]} 4. Bxd7+ {[%clk 0:02:57]} 4... Qxd7 {[%clk 0:03:00.7]} 5. O-O {[%clk
0:02:56.8]} 5... Nc6 {[%clk 0:03:00.5]} 6. c3 {[%clk 0:02:56.3]} 6... Nf6 {[%clk
0:03:00.1]} 7. Qe2 {[%clk 0:02:53.4]} 7... e6 {[%clk 0:02:59.2]} 8. d4 {[%clk
0:02:53.3]} 8... cxd4 {[%clk 0:02:59.5]} 9. cxd4 {[%clk 0:02:54.2]} 9... d5
{[%clk 0:02:59.9]} 10. e5 {[%clk 0:02:54.6]} 10... Ne4 {[%clk 0:03:00.1]} 11.
Nbd2 {[%clk 0:02:52]} 11... Nxd2 {[%clk 0:02:58.6]} 12. Bxd2 {[%clk 0:02:52.9]}
12... Be7 {[%clk 0:02:59]} 13. g3 {[%clk 0:02:52.9]} 13... Rc8 {[%clk
0:02:57.4]} 14. Kg2 {[%clk 0:02:51.7]} 14... a6 {[%clk 0:02:55.3]} 15. h4 {[%clk
0:02:50.9]} 15... h6 {[%clk 0:02:54.9]} 16. Rac1 {[%clk 0:02:44.7]} 16... O-O
{[%clk 0:02:54.3]} 17. Rc3 {[%clk 0:02:19.3]} 17... Na7 {[%clk 0:02:52.1]} 18.
Rb3 {[%clk 0:02:04.8]} 18... b5 {[%clk 0:02:49]} 19. h5 {[%clk 0:01:59.4]} 19...
Rc4 {[%clk 0:02:46.6]} 20. Rh1 {[%clk 0:01:47.1]} 20... Nc6 {[%clk 0:02:46.3]}
21. Rd3 {[%clk 0:01:45.7]} 21... f6 {[%clk 0:02:46.4]} 22. Bf4 {[%clk
0:01:06.5]} 22... fxe5 {[%clk 0:02:36.5]} 23. Nxe5 {[%clk 0:01:06.1]} 23... Nxe5
{[%clk 0:02:36.5]} 24. Bxe5 {[%clk 0:01:06.8]} 24... Bf6 {[%clk 0:02:28.1]} 25.
Bxf6 {[%clk 0:00:55.6]} 25... Rxf6 {[%clk 0:02:27.7]} 26. b3 {[%clk 0:00:54.5]}
26... Rc8 {[%clk 0:02:22.1]} 27. Re1 {[%clk 0:00:51.6]} 27... b4 {[%clk
0:02:16.5]} 28. Re3 {[%clk 0:00:49.5]} 28... Rc6 {[%clk 0:02:15.8]} 29. Qg4
{[%clk 0:00:27.2]} 29... Rc2 {[%clk 0:02:09.2]} 30. R1e2 {[%clk 0:00:27.2]}
30... Rxe2 {[%clk 0:02:08.7]} 31. Qxe2 {[%clk 0:00:28.1]} 31... a5 {[%clk
0:02:06.2]} 32. Rf3 {[%clk 0:00:13]} 32... Rxf3 {[%clk 0:01:55.3]} 33. Qxf3
{[%clk 0:00:13.9]} 33... a4 {[%clk 0:01:41.6]} 34. Qf4 {[%clk 0:00:12.6]} 34...
Qe8 {[%clk 0:01:30.9]} 35. Qd6 {[%clk 0:00:11.7]} 35... axb3 {[%clk 0:01:25]}
36. axb3 {[%clk 0:00:12.6]} 36... Qxh5 {[%clk 0:01:18.6]} 37. Qxe6+ {[%clk
0:00:12.7]} 37... Qf7 {[%clk 0:01:18.3]} 38. Qd6 {[%clk 0:00:10.2]} 38... Qf5
{[%clk 0:01:07.5]} 39. Qxb4 {[%clk 0:00:10]} 39... Qe4+ {[%clk 0:01:07.9]} 40.
Kg1 {[%clk 0:00:10.3]} 40... Qb1+ {[%clk 0:01:06.8]} 41. Kh2 {[%clk 0:00:10.4]}
41... Qc2 {[%clk 0:01:02.4]} 42. Qb8+ {[%clk 0:00:05.1]} 42... Kh7 {[%clk
0:01:02.1]} 43. Qf4 {[%clk 0:00:04.9]} 43... Qxb3 {[%clk 0:01:00]} 44. Qf5+
{[%clk 0:00:05.3]} 44... Kh8 {[%clk 0:00:59]} 45. Qf8+ {[%clk 0:00:05.3]} 45...
Kh7 {[%clk 0:00:58.9]} 46. Qf5+ {[%clk 0:00:06.2]} 46... Kh8 {[%clk 0:00:59.3]}
47. Kg2 {[%clk 0:00:05.9]} 47... Qc4 {[%clk 0:00:56.5]} 48. Qf8+ {[%clk
0:00:05.9]} 48... Kh7 {[%clk 0:00:56.5]} 49. Qf5+ {[%clk 0:00:06.8]} 49... Kg8
{[%clk 0:00:57]} 50. Qe5 {[%clk 0:00:07.4]} 50... Kf7 {[%clk 0:00:55.4]} 51. g4
{[%clk 0:00:06.8]} 51... Qc6 {[%clk 0:00:53.6]} 52. Kg3 {[%clk 0:00:06.3]} 52...
Qe6 {[%clk 0:00:39]} 53. Qc7+ {[%clk 0:00:06.4]} 53... Kg6 {[%clk 0:00:37]} 54.
Qf4 {[%clk 0:00:06.8]} 54... Qf6 {[%clk 0:00:34]} 55. Qe3 {[%clk 0:00:06.6]}
55... Kf7 {[%clk 0:00:31.8]} 56. f3 {[%clk 0:00:06.1]} 56... g5 {[%clk
0:00:31.8]} 57. Kg2 {[%clk 0:00:05.8]} 57... Qe6 {[%clk 0:00:23.4]} 58. Qd3
{[%clk 0:00:06.1]} 58... Kg7 {[%clk 0:00:22.9]} 59. Kf2 {[%clk 0:00:06.6]} 59...
Qd6 {[%clk 0:00:22.9]} 60. Qf5 {[%clk 0:00:06.8]} 60... Qh2+ {[%clk 0:00:21.8]}
61. Kf1 {[%clk 0:00:06.8]} 61... Qh1+ {[%clk 0:00:21.9]} 62. Kf2 {[%clk
0:00:07.3]} 62... Qh2+ {[%clk 0:00:22.1]} 63. Kf1 {[%clk 0:00:05.8]} 63... Qh1+
{[%clk 0:00:22.2]} 64. Kf2 {[%clk 0:00:06.2]} 64... Qh2+ {[%clk 0:00:22.4]}
1/2-1/2